bitfinex/quotes_BTCUSD_20260315
["timestamp","ask_amount","ask_price","bid_price","bid_amount"]
[1773567893602,0.07509832,71750.0,71742.0,0.0014]
[1773567894895,0.07509832,71750.0,71739.0,0.06969681]
[1773567895103,0.07509832,71750.0,71742.0,0.0014]
[1773567895729,0.07509832,71748.0,71742.0,0.0014]
[1773567895931,0.07509832,71748.0,71738.0,0.0002]
[1773567896130,0.07509832,71748.0,71742.0,0.0014]
[1773567896934,0.07509832,71748.0,71738.0,0.06989738]
[1773567897093,0.07509832,71748.0,71742.0,0.0014]
[1773567897505,0.07509832,71748.0,71738.0,0.06989738]
[1773567897748,0.07509832,71748.0,71742.0,0.0014]
[1773567897902,0.07509832,71747.0,71742.0,0.0014]
[1773567898305,0.07509832,71747.0,71738.0,0.06989738]
[1773567898554,0.07509832,71747.0,71739.0,0.0014]
[1773567899048,0.07509832,71747.0,71740.0,0.0014]
[1773567899400,0.07509832,71747.0,71741.0,0.0014]
[1773567899825,0.07509832,71747.0,71738.0,0.06989738]
[1773567900021,0.07509832,71747.0,71739.0,0.0014]
[1773567900442,0.07509832,71747.0,71738.0,0.06989738]
[1773567900443,0.07509832,71747.0,71740.0,0.0014]
[1773567900868,0.07509832,71747.0,71739.0,0.0002]
[1773567901164,0.07509832,71747.0,71741.0,0.0014]
[1773567901326,0.07509832,71747.0,71739.0,0.0002]
[1773567901524,0.07509832,71746.0,71738.0,0.06989738]
[1773567901726,0.07438646,71746.0,71739.0,0.0014]
[1773567901929,0.07438646,71746.0,71740.0,0.0014]
[1773567902333,0.07509832,71744.0,71740.0,0.0014]
[1773567902532,0.06969126,71745.0,71740.0,0.0014]
[1773567902731,0.07509832,71744.0,71740.0,0.0014]
[1773567902937,0.14478958,71745.0,71740.0,0.0014]
[1773567903330,0.06969126,71745.0,71740.0,0.0014]
[1773567904232,0.06969126,71746.0,71740.0,0.0014]
[1773567908011,0.14478958,71746.0,71740.0,0.0014]
[1773567909079,0.14478958,71746.0,71739.0,0.0014]
[1773567909909,0.06969126,71746.0,71740.0,0.0002]
[1773567910905,0.06968937,71747.0,71740.0,0.0002]
[1773567918046,0.06968937,71747.0,71738.0,0.0014]
[1773567919231,0.05968937,71747.0,71738.0,0.0014]
[1773567919434,0.05990938,71747.0,71738.0,0.0014]
[1773567921550,0.07509832,71746.0,71729.0,0.0014]
[1773567922823,0.07491985,71746.0,71729.0,0.0014]
[1773567927757,0.05825637,71740.0,71729.0,0.0014]
[1773567927923,0.06969126,71745.0,71730.0,0.0724512]
[1773567929181,0.06969126,71745.0,71730.0,0.0734512]
[1773567929381,0.06969126,71745.0,71730.0,0.0724512]
[1773567929623,0.06969126,71745.0,71731.0,0.13970384]
[1773567929800,0.00022001,71747.0,71733.0,0.14215412]
[1773567930435,0.00022001,71747.0,71734.0,0.0724512]
[1773567931006,0.00022001,71747.0,71733.0,0.06970292]
[1773567931598,0.00022001,71747.0,71733.0,0.14215412]
[1773567931798,0.06968462,71752.0,71734.0,0.0724512]
[1773567932016,0.06968446,71753.0,71734.0,0.0724512]
[1773567932771,0.06990214,71755.0,71736.0,0.04013859]
[1773567934854,0.06990214,71755.0,71738.0,0.04412577]
[1773567934855,0.07000934,71755.0,71738.0,0.04412577]
[1773567935267,0.00022001,71753.0,71738.0,0.04412577]
[1773567935831,0.00032721,71753.0,71738.0,0.04412577]
[1773567936134,0.00032721,71753.0,71737.0,0.06969903]
[1773567936135,0.00032721,71753.0,71741.0,0.04392581]
[1773567936362,0.00032721,71753.0,71743.0,0.04392581]
[1773567936758,0.00032721,71753.0,71744.0,0.06969223]
[1773567937075,0.07001094,71753.0,71744.0,0.11361804]
[1773567937284,0.07001094,71753.0,71745.0,0.04382597]
[1773567938440,0.07001094,71753.0,71745.0,0.11351692]
[1773567939364,0.07001094,71753.0,71745.0,0.06969095]
[1773567940252,0.00032721,71753.0,71745.0,0.06969095]
[1773567940504,0.07001095,71753.0,71744.0,0.06969169]
[1773567941391,0.07001095,71753.0,71744.0,0.11272497]
[1773567941885,0.07001095,71753.0,71744.0,0.06969169]
[1773567942241,0.00022001,71756.0,71745.0,0.04283817]
[1773567942442,0.06967882,71758.0,71745.0,0.04283817]
[1773567942659,0.07003516,71759.0,71745.0,0.04283817]
[1773567943459,0.06989663,71761.0,71749.0,0.05825852]
[1773567943657,0.06989663,71761.0,71750.0,0.04410248]
[1773567944159,0.06989663,71761.0,71751.0,0.06968543]
[1773567944675,0.00022001,71753.0,71751.0,0.06968543]
[1773567944892,0.06989663,71761.0,71751.0,0.06968543]
[1773567948370,0.06967545,71762.0,71751.0,0.06968543]
[1773567950781,0.06989331,71764.0,71751.0,0.06968543]
[1773567952112,0.00022001,71761.0,71751.0,0.06968543]
[1773567952717,0.069667,71770.0,71753.0,0.06968349]
[1773567952923,0.14113826,71770.0,71753.0,0.06968349]
[1773567953402,0.07147126,71769.0,71754.0,0.0014]
[1773567953792,0.07147126,71769.0,71753.0,0.06968349]
[1773567954039,0.07147126,71769.0,71754.0,0.0014]
[1773567954440,0.07147126,71769.0,71755.0,0.0014]
[1773567954950,0.06966893,71768.0,71756.0,0.0014]
[1773567955151,0.07147126,71767.0,71756.0,0.0014]
[1773567957522,0.06967087,71766.0,71756.0,0.07108012]
[1773567957721,0.14114213,71766.0,71756.0,0.07108012]
[1773567960491,0.14114213,71766.0,71751.0,0.0002]
[1773567960492,0.07147126,71765.0,71751.0,0.0002]
[1773567960816,0.07147126,71765.0,71752.0,0.07108446]
[1773567966849,0.06967281,71764.0,71752.0,0.07128446]
[1773567968954,0.00022001,71765.0,71752.0,0.07128446]
[1773567969253,0.00022001,71765.0,71753.0,0.07617502]
[1773567969634,0.00022001,71765.0,71752.0,0.07128446]
[1773567969807,0.00022001,71765.0,71753.0,0.07617502]
[1773567970003,0.06966761,71770.0,71753.0,0.07617502]
[1773567971747,0.06966761,71770.0,71754.0,0.06968252]
[1773567971947,0.06993674,71771.0,71755.0,0.07617502]
[1773567974110,0.06993674,71771.0,71756.0,0.06968058]
[1773567976530,0.06993674,71771.0,71754.0,0.06968252]
[1773567976716,0.06993674,71771.0,71755.0,0.07617502]
[1773567982505,0.06993674,71771.0,71756.0,0.06968058]
[1773567986719,0.13918288,71771.0,71756.0,0.06968058]
[1773567993528,0.13918288,71771.0,71756.0,0.14194926]
[1773567993529,0.06993674,71771.0,71756.0,0.14194926]
[1773567993885,0.06993674,71771.0,71756.0,0.06968058]
[1773567994085,0.06993674,71771.0,71756.0,0.14194926]
[1773567994924,0.06993674,71771.0,71757.0,0.07226868]
[1773567995086,0.06993674,71771.0,71760.0,0.0696767]
[1773568003740,0.07613674,71771.0,71760.0,0.0696767]
[1773568007909,0.07613674,71771.0,71759.0,0.0696767]
[1773568010370,0.07613674,71771.0,71757.0,0.04965317]
[1773568010518,0.07613674,71771.0,71760.0,0.0014]
[1773568012745,0.07613674,71771.0,71761.0,0.06967572]
[1773568013851,0.06993674,71771.0,71761.0,0.06967572]
[1773568020577,0.06993674,71771.0,71761.0,0.06347572]
[1773568029507,0.12816527,71771.0,71760.0,0.0014]
[1773568029684,0.07116942,71770.0,71760.0,0.0014]
[1773568030096,0.07116942,71770.0,71756.0,0.0002]
[1773568030097,0.07116942,71770.0,71753.0,0.06968326]
[1773568030704,0.07116942,71770.0,71753.0,0.07108326]
[1773568031106,0.0014,71769.0,71753.0,0.06968326]
[1773568031309,0.0014,71769.0,71754.0,0.0014]
[1773568031310,0.07116942,71768.0,71754.0,0.0014]
[1773568031693,0.14083932,71767.0,71755.0,0.0014]
[1773568031926,0.14083932,71767.0,71753.0,0.06968326]
[1773568032219,0.0696699,71767.0,71754.0,0.0014]
[1773568032391,0.07116942,71766.0,71754.0,0.0014]
[1773568032816,0.07116942,71766.0,71755.0,0.0014]
[1773568033213,0.07116942,71766.0,71753.0,0.06968326]
[1773568033417,0.07116942,71766.0,71754.0,0.0014]
[1773568033804,0.06967184,71765.0,71755.0,0.0014]
[1773568035333,0.06967184,71765.0,71755.0,0.0016]
[1773568037154,0.06966796,71769.0,71757.0,0.07020838]
[1773568042110,0.06966796,71769.0,71758.0,0.06967864]
[1773568046049,0.06966791,71770.0,71758.0,0.1397302]
[1773568048162,0.06966791,71770.0,71758.0,0.06967864]
[1773568048461,0.13886737,71770.0,71758.0,0.06967864]
[1773568049414,0.06966791,71770.0,71758.0,0.06967864]
[1773568049618,0.06919946,71769.0,71758.0,0.06967864]
[1773568050147,0.06966893,71768.0,71758.0,0.06967864]
[1773568052741,0.06966893,71768.0,71757.0,0.06987946]
[1773568052944,0.06919946,71767.0,71757.0,0.0002]
[1773568053143,0.06919946,71767.0,71758.0,0.0014]
[1773568054976,0.06967087,71766.0,71759.0,0.0014]
[1773568055139,0.06919946,71765.0,71759.0,0.0014]
[1773568056178,0.06919946,71765.0,71759.0,0.0015299]
[1773568057670,0.06966893,71768.0,71759.0,0.0014]
[1773568057873,0.13886839,71768.0,71759.0,0.0014]
[1773568058419,0.06966893,71768.0,71759.0,0.0014]
[1773568058625,0.06919946,71767.0,71759.0,0.0014]
[1773568060575,0.06967087,71766.0,71758.0,0.0014]
[1773568060775,0.06919946,71765.0,71758.0,0.0014]
[1773568061450,0.06967087,71766.0,71758.0,0.0014]
[1773568062004,0.06967087,71766.0,71751.0,0.06968543]
[1773568062207,0.06919946,71765.0,71751.0,0.06968543]
[1773568062414,0.06919946,71765.0,71752.0,0.0014]
[1773568062616,0.06967281,71764.0,71753.0,0.06968349]
[1773568065520,0.06967281,71764.0,71753.0,0.06988349]
[1773568068427,0.06967281,71764.0,71754.0,0.0014]
[1773568072982,0.06967281,71764.0,71755.0,0.06968155]
[1773568075845,0.06967087,71766.0,71754.0,0.0016]
[1773568076048,0.07111252,71765.0,71754.0,0.0016]
[1773568076572,0.07111252,71765.0,71755.0,0.0014]
[1773568077416,0.07111252,71765.0,71751.0,0.06968543]
[1773568077620,0.07111252,71765.0,71755.0,0.0014]
[1773568078045,0.07111252,71763.0,71754.0,0.0014]
[1773568080063,0.06967475,71762.0,71754.0,0.0014]
[1773568080932,0.06967475,71762.0,71753.0,0.0014]
[1773568081125,0.07111252,71761.0,71752.0,0.0014]
[1773568081748,0.07111252,71761.0,71749.0,0.00055745]
[1773568081966,0.07111252,71761.0,71750.0,0.0014]
[1773568082410,0.0696767,71760.0,71751.0,0.0014]
[1773568082617,0.07111252,71759.0,71747.0,0.0014]
[1773568082934,0.07146997,71759.0,71747.0,0.0014]
[1773568083521,0.07146997,71759.0,71746.0,0.06989028]
[1773568083863,0.07146997,71759.0,71747.0,0.0014]
[1773568084585,0.06967864,71758.0,71747.0,0.0014]
[1773568084990,0.06967864,71758.0,71746.0,0.06989028]
[1773568085344,0.06967864,71758.0,71747.0,0.0014]
[1773568085555,0.14079116,71758.0,71747.0,0.0014]
[1773568085711,0.14079116,71758.0,71746.0,0.0002]
[1773568086054,0.14079116,71758.0,71747.0,0.0014]
[1773568086509,0.14079116,71758.0,71744.0,0.0014]
[1773568086510,0.07111252,71755.0,71744.0,0.0014]
[1773568087961,0.05824435,71754.0,71744.0,0.0014]
[1773568088575,0.06968349,71753.0,71744.0,0.0014]
[1773568089935,0.07111252,71752.0,71742.0,0.0016]
[1773568090785,0.06968543,71751.0,71742.0,0.0016]
[1773568092249,0.06968543,71751.0,71742.0,0.0002]
[1773568092780,0.07111252,71750.0,71720.0,0.20823333]
[1773568093028,0.02379825,71740.0,71729.0,0.0016]
[1773568094500,0.02379825,71740.0,71729.0,0.0018106]
[1773568095302,0.03780402,71739.0,71729.0,0.0018106]
[1773568099811,0.03760244,71739.0,71729.0,0.0018106]
[1773568101149,0.03760244,71739.0,71729.0,0.0004106]
[1773568101335,0.03760244,71739.0,71730.0,0.0014]
[1773568101853,0.03760244,71739.0,71729.0,0.0004106]
[1773568102071,0.03760244,71739.0,71731.0,0.0014]
[1773568102356,0.03760244,71739.0,71729.0,0.0004106]
[1773568102578,0.03760244,71739.0,71731.0,0.0014]
[1773568104728,0.03760244,71739.0,71729.0,0.0004106]
[1773568104729,0.10543158,71739.0,71730.0,0.0014]
[1773568104932,0.10543158,71739.0,71713.0,0.06972209]
[1773568104933,0.06922914,71738.0,71713.0,0.06972209]
[1773568105277,0.05824435,71730.0,71717.0,0.07142223]
[1773568105939,0.05824435,71730.0,71717.0,0.06142223]
[1773568106139,0.06970681,71729.0,71717.0,0.06142223]
[1773568106505,0.06970681,71729.0,71721.0,0.0002]
[1773568107045,0.06970681,71729.0,71717.0,0.00010726]
[1773568107046,0.13753595,71729.0,71717.0,0.00010726]
[1773568107263,0.13753595,71729.0,71718.0,0.0014]
[1773568108976,0.13753595,71729.0,71711.0,0.07414691]
[1773568108977,0.06782914,71728.0,71711.0,0.0758454]
[1773568109170,0.05824435,71722.0,71712.0,0.07027865]
[1773568109339,0.07110681,71729.0,71712.0,0.07027865]
[1773568111911,0.06970681,71729.0,71712.0,0.07027865]
[1773568112082,0.07110681,71729.0,71712.0,0.07027865]
[1773568112936,0.06970681,71729.0,71712.0,0.07027865]
[1773568113333,0.04350714,71722.0,71712.0,0.00045642]
[1773568113634,0.04350714,71722.0,71713.0,0.0014]
[1773568113635,0.04320279,71722.0,71713.0,0.0014]
[1773568113831,0.04320279,71722.0,71704.0,0.07008038]
[1773568114008,0.11113912,71722.0,71706.0,0.0014]
[1773568114225,0.11113912,71722.0,71699.0,0.06973502]
[1773568114227,0.11113912,71722.0,71685.0,5e-05]
[1773568114229,0.05824435,71716.0,71685.0,5e-05]
[1773568114390,0.00035829,71722.0,71691.0,0.06943223]
[1773568114989,0.00035829,71722.0,71692.0,0.06974278]
[1773568114990,0.06971458,71721.0,71692.0,0.06974278]
[1773568115191,0.05824435,71720.0,71693.0,0.07002223]
[1773568115397,0.06971458,71721.0,71693.0,0.07002223]
[1773568115624,0.05832049,71720.0,71693.0,0.07002223]
[1773568116635,0.05857159,71720.0,71693.0,0.07002223]
[1773568117297,0.06971653,71719.0,71695.0,0.07002223]
[1773568117467,0.06971653,71719.0,71697.0,0.07002223]
[1773568117668,0.06996763,71719.0,71697.0,0.07002223]
[1773568118551,0.04133669,71719.0,71697.0,0.07002223]
[1773568119078,0.06971653,71720.0,71697.0,0.07002223]
[1773568119458,0.00010719,71722.0,71699.0,0.07002223]
[1773568120232,0.0697089,71727.0,71699.0,0.07002223]
[1773568120411,0.05806924,71720.0,71699.0,0.07012942]
[1773568121024,0.0697089,71727.0,71702.0,0.07002223]
[1773568121191,0.0697089,71727.0,71704.0,0.07002223]
[1773568121391,0.0697089,71727.0,71705.0,0.06973014]
[1773568121632,0.0697089,71727.0,71706.0,0.07002223]
[1773568121840,0.06782914,71725.0,71706.0,0.07002223]
[1773568122244,0.0697089,71727.0,71706.0,0.07002223]
[1773568123792,0.05832049,71720.0,71707.0,0.06972819]
[1773568124995,0.05832049,71720.0,71708.0,0.07002223]
[1773568125193,5e-05,71726.0,71709.0,0.0014]
[1773568126937,5e-05,71726.0,71709.0,0.07142223]
[1773568127642,5e-05,71726.0,71709.0,0.14114813]
[1773568127958,5e-05,71726.0,71709.0,0.07142223]
[1773568128715,5e-05,71726.0,71710.0,0.07002223]
[1773568129161,0.06782914,71725.0,71709.0,0.0014]
[1773568130199,0.06971167,71724.0,71709.0,0.0014]
[1773568130374,0.06971167,71724.0,71710.0,0.07002223]
[1773568130592,0.06976167,71726.0,71710.0,0.07002223]
[1773568130593,0.06976167,71726.0,71711.0,0.07002223]
[1773568130594,0.06975998,71726.0,71711.0,0.07002223]
[1773568130796,0.04154372,71726.0,71711.0,0.07002223]
[1773568130997,0.06975972,71728.0,71711.0,0.07002223]
[1773568131208,5e-05,71728.0,71711.0,0.07002223]
[1773568131403,0.06970496,71731.0,71711.0,0.07002223]
[1773568131611,0.06970472,71732.0,71711.0,0.07002223]
[1773568131879,0.0414887,71731.0,71711.0,0.07002223]
[1773568132075,0.0414887,71731.0,71711.0,0.07102223]
[1773568132241,0.06975087,71736.0,71713.0,0.06539984]
[1773568132242,0.06970161,71735.0,71713.0,0.06539984]
[1773568134224,0.06970161,71735.0,71714.0,0.06972139]
[1773568134426,0.06970161,71735.0,71715.0,0.06679984]
[1773568134624,0.00022001,71731.0,71715.0,0.06679984]
[1773568136206,0.06970584,71730.0,71716.0,0.06971944]
[1773568136532,0.06970584,71730.0,71717.0,0.06539984]
[1773568138373,0.06970584,71730.0,71718.0,0.0697175]
[1773568138599,0.06970584,71730.0,71710.0,0.06972528]
[1773568138600,0.06630698,71729.0,71710.0,0.06972528]
[1773568138796,0.06630698,71729.0,71711.0,0.0014]
[1773568139345,0.06630698,71729.0,71711.0,0.06679984]
[1773568140972,0.06970778,71728.0,71712.0,0.06972333]
[1773568141285,0.06970778,71728.0,71712.0,0.07112333]
[1773568143210,0.13601476,71728.0,71712.0,0.07112333]
[1773568143770,0.13601476,71728.0,71712.0,0.06972333]
[1773568144001,0.13601476,71728.0,71713.0,0.0014]
[1773568144364,0.06970778,71728.0,71712.0,0.06972317]
[1773568144668,0.06630698,71727.0,71713.0,0.0014]
[1773568145311,0.06970972,71726.0,71714.0,0.06972139]
[1773568145546,0.04430698,71725.0,71714.0,0.06972139]
[1773568146071,0.06970972,71726.0,71714.0,0.06972139]
[1773568147832,0.06970972,71727.0,71714.0,0.06972139]
[1773568148049,0.1360167,71727.0,71714.0,0.06972139]
[1773568149087,0.06970972,71727.0,71714.0,0.06972139]
[1773568149303,0.06970972,71727.0,71713.0,0.0014]
[1773568149419,0.06630698,71726.0,71713.0,0.07112202]
[1773568149628,0.06970972,71727.0,71713.0,0.07112202]
[1773568149835,0.06970972,71727.0,71714.0,0.06539984]
[1773568151168,0.06970972,71727.0,71710.0,0.12804285]
[1773568151169,0.06970972,71727.0,71715.0,0.0014]
[1773568151364,0.06970972,71727.0,71716.0,0.06971944]
[1773568153439,0.06970859,71728.0,71716.0,0.06971944]
[1773568153742,0.00022001,71729.0,71716.0,0.06971944]
[1773568154090,0.0699269,71729.0,71716.0,0.06971944]
[1773568156062,0.00022001,71729.0,71716.0,0.06971944]
[1773568156272,0.06992695,71729.0,71716.0,0.06971944]
[1773568159090,0.06824348,71728.0,71716.0,0.06971944]
[1773568159270,0.06824348,71726.0,71716.0,0.06971944]
[1773568159920,0.06824348,71726.0,71717.0,0.0014]
[1773568160276,0.06824348,71726.0,71716.0,0.06971944]
[1773568160479,0.06824348,71726.0,71718.0,0.0014]
[1773568160819,0.06824348,71726.0,71716.0,0.06971944]
[1773568161039,0.06824348,71726.0,71719.0,0.0014]
[1773568161238,0.0697107,71725.0,71717.0,0.0697177]
[1773568161403,0.0697107,71725.0,71718.0,0.0014]
[1773568161806,0.0697107,71725.0,71719.0,0.0014]
[1773568162323,0.0697107,71725.0,71720.0,0.0014]
[1773568163357,0.0517107,71725.0,71721.0,0.0014]
[1773568163563,0.0517107,71725.0,71710.0,0.06972528]
[1773568163756,0.0517107,71725.0,71711.0,0.0014]
[1773568164114,0.0517107,71725.0,71712.0,0.0014]
[1773568164318,0.06824348,71725.0,71713.0,0.06972236]
[1773568164636,0.06824348,71725.0,71713.0,0.06982955]
[1773568164837,0.06824348,71725.0,71714.0,0.0014]
[1773568165237,0.06824348,71725.0,71715.0,0.0014]
[1773568165637,0.06824348,71725.0,71713.0,0.06982955]
[1773568165841,0.06824348,71725.0,71714.0,0.0014]
[1773568166243,0.06971167,71724.0,71715.0,0.07111977]
[1773568166565,0.13795515,71724.0,71716.0,0.0014]
[1773568166969,0.13795515,71724.0,71715.0,0.06971977]
[1773568167127,0.13795515,71724.0,71717.0,0.0014]
[1773568167664,0.13795515,71724.0,71718.0,0.0014]
[1773568168029,0.06824348,71723.0,71719.0,0.0014]
[1773568168430,0.13795689,71723.0,71713.0,0.06982955]
[1773568168651,0.06971341,71723.0,71714.0,0.0014]
[1773568169030,0.06971341,71723.0,71715.0,0.0014]
[1773568169528,0.13795689,71723.0,71716.0,0.0014]
[1773568169950,0.13795689,71723.0,71713.0,0.06982955]
[1773568170154,0.13795689,71723.0,71717.0,0.0014]
[1773568170520,0.06824348,71722.0,71718.0,0.0014]
[1773568170975,0.06824348,71722.0,71713.0,0.06982955]
[1773568171184,0.06824348,71722.0,71719.0,0.0014]
[1773568171476,0.06824348,71722.0,71713.0,0.06982955]
[1773568171640,0.06824348,71722.0,71714.0,0.0014]
[1773568171840,0.06824348,71722.0,71713.0,0.06982955]
[1773568172046,0.06824348,71722.0,71714.0,0.0014]
[1773568172443,0.06754348,71720.0,71715.0,0.0014]
[1773568172669,0.06765076,71720.0,71715.0,0.0014]
[1773568173781,0.06765076,71720.0,71716.0,0.0014]
[1773568173958,0.06765076,71720.0,71717.0,0.0014]
[1773568174156,0.06765076,71720.0,71718.0,0.0014]
[1773568174408,0.06765076,71720.0,71717.0,0.0014]
[1773568174585,0.06279036,71718.0,71717.0,0.0014]
[1773568175164,0.06279036,71718.0,71704.0,0.04905836]
[1773568175406,0.06279036,71718.0,71706.0,0.0697286]
[1773568176665,0.06971847,71717.0,71706.0,0.0697286]
[1773568176907,0.13250883,71717.0,71706.0,0.0697286]
[1773568177419,0.06279036,71716.0,71707.0,0.0014]
[1773568178599,0.06971787,71718.0,71707.0,0.0014]
[1773568178801,0.06971653,71719.0,71707.0,0.0014]
[1773568179002,0.06982291,71720.0,71708.0,0.06972722]
[1773568180954,0.06279036,71727.0,71708.0,0.06972722]
[1773568181116,0.06279036,71727.0,71708.0,0.0698345]
[1773568182932,0.06279036,71727.0,71708.0,0.0700345]
[1773568183134,0.06970972,71726.0,71708.0,0.0700345]
[1773568183433,0.06279036,71725.0,71708.0,0.0700345]
[1773568185240,0.06279036,71723.0,71708.0,0.0700345]
[1773568186272,0.06279036,71723.0,71708.0,0.00030728]
[1773568186790,0.06279036,71723.0,71708.0,0.07003448]
[1773568188102,0.06279036,71719.0,71708.0,0.00030728]
[1773568190069,0.13250786,71718.0,71709.0,0.0014]
[1773568190802,0.13250786,71718.0,71710.0,0.0014]
[1773568191406,0.13250786,71718.0,71711.0,0.0014]
[1773568193417,0.06993575,71720.0,71711.0,0.0711242]
[1773568194296,0.06993575,71720.0,71711.0,0.0014]
[1773568194498,0.06993575,71720.0,71711.0,0.0015264]
[1773568194696,0.13343289,71720.0,71711.0,0.0015264]
[1773568197144,0.06993559,71720.0,71711.0,0.07125059]
[1773568201489,0.00022001,71727.0,71711.0,0.07125059]
[1773568201690,0.069929,71727.0,71712.0,0.04704767]
[1773568202558,0.06992835,71728.0,71712.0,0.04704767]
[1773568203495,0.06992835,71728.0,71714.0,0.04679577]
[1773568203817,0.05292835,71728.0,71714.0,0.04679577]
[1773568206289,0.05292835,71728.0,71715.0,0.06972042]
[1773568206839,0.00022001,71729.0,71715.0,0.06972042]
[1773568206840,0.06992692,71729.0,71715.0,0.06972042]
[1773568211449,0.05692692,71729.0,71715.0,0.06972042]
[1773568214620,0.05692692,71729.0,71715.0,0.11539872]
[1773568216672,0.05714693,71729.0,71715.0,0.11539872]
[1773568217628,0.00022001,71729.0,71715.0,0.11539872]
[1773568218620,0.06992716,71729.0,71716.0,0.04519185]
[1773568218785,0.06992716,71729.0,71718.0,0.04519185]
[1773568219286,0.05792716,71729.0,71718.0,0.04519185]
[1773568220880,0.05792716,71729.0,71719.0,0.06971653]
[1773568221304,0.06970656,71730.0,71719.0,0.06971653]
[1773568222109,0.00022001,71731.0,71719.0,0.06971653]
[1773568222325,0.00022001,71731.0,71720.0,0.05831972]
[1773568223205,0.00022001,71731.0,71719.0,0.06971653]
[1773568224496,0.00022001,71731.0,71720.0,0.04456024]
[1773568225255,0.00022001,71731.0,71721.0,0.06971458]
[1773568225674,0.00022001,71731.0,71720.0,0.02326749]
[1773568225879,0.00022001,71731.0,71721.0,0.06971458]
[1773568226954,0.0519235,71733.0,71721.0,0.06971458]
[1773568227651,0.06992155,71735.0,71719.0,0.06971653]
[1773568229380,0.06992117,71735.0,71719.0,0.06971653]
[1773568229953,0.06992117,71735.0,71719.0,0.07071653]
[1773568230357,0.06992117,71735.0,71719.0,0.06971653]
[1773568234205,0.00022001,71735.0,71719.0,0.06971653]
[1773568234388,0.06992161,71735.0,71719.0,0.06971653]
[1773568235981,0.00022001,71735.0,71719.0,0.07071653]
[1773568236280,0.06992103,71735.0,71719.0,0.06971653]
[1773568236981,0.06624877,71734.0,71719.0,0.06971653]
[1773568239423,0.06624877,71734.0,71715.0,0.06971653]
[1773568239424,0.058285,71730.0,71711.0,0.0001264]
[1773568239625,0.06424251,71732.0,71715.0,0.0014]
[1773568239939,0.06424251,71729.0,71716.0,0.0014]
[1773568240146,0.06424251,71729.0,71709.0,0.22360614]
[1773568240147,0.06424251,71729.0,71717.0,0.0014]
[1773568240266,0.06424251,71729.0,71718.0,0.0014]
[1773568240471,0.06424251,71729.0,71709.0,0.22360614]
[1773568240472,0.06424251,71729.0,71719.0,0.0016]
[1773568241683,0.06970778,71728.0,71719.0,0.0016]
[1773568241887,0.06424251,71727.0,71719.0,0.0016]
[1773568244747,0.06970972,71726.0,71719.0,0.0016]
[1773568244928,0.06424251,71725.0,71719.0,0.0014]
[1773568246313,0.06970972,71726.0,71719.0,0.0014]
[1773568246994,0.06970778,71729.0,71720.0,0.0014]
[1773568247879,0.06970486,71731.0,71720.0,0.0014]
[1773568248915,0.06970486,71732.0,71720.0,0.0014]
[1773568251497,0.06970486,71733.0,71720.0,0.0014]
[1773568255182,0.07024826,71733.0,71720.0,0.0014]
[1773568255527,0.07046827,71733.0,71720.0,0.0014]
[1773568256156,0.07046827,71733.0,71720.0,0.07111516]
[1773568256355,0.07046827,71733.0,71721.0,0.06396193]
[1773568257892,0.07046827,71733.0,71721.0,0.1336757]
[1773568260077,0.07046827,71733.0,71722.0,0.06396193]
[1773568262760,0.07046827,71733.0,71720.0,0.0711155]
[1773568262962,0.07046827,71733.0,71720.0,0.07111541]
[1773568263766,0.07046827,71733.0,71720.0,0.06971541]
[1773568264050,0.07046827,71733.0,71721.0,0.0014]
[1773568265569,0.07046827,71733.0,71721.0,0.07111443]
[1773568269919,0.07046827,71733.0,71722.0,0.06396193]
[1773568270144,0.07046827,71733.0,71721.0,0.07111443]
[1773568274910,0.07046827,71733.0,71721.0,0.13507636]
[1773568276569,0.00027001,71736.0,71722.0,0.06396193]
[1773568276727,0.04408295,71734.0,71722.0,0.06396193]
[1773568276939,0.04408295,71734.0,71724.0,0.06396193]
[1773568277341,0.04408295,71734.0,71724.0,0.0272506]
[1773568280639,0.04430296,71734.0,71724.0,0.09696139]
[1773568282041,0.04430296,71734.0,71723.0,0.06971264]
[1773568288214,0.04430296,71734.0,71722.0,0.06971361]
[1773568291414,0.04430296,71734.0,71721.0,0.07111403]
[1773568291756,0.04430296,71734.0,71720.0,0.06971547]
[1773568291757,0.10241144,71734.0,71720.0,0.06971547]
[1773568291938,0.10241144,71734.0,71722.0,0.0014]
[1773568292122,0.05810848,71733.0,71722.0,0.0014]
[1773568292329,0.05810848,71733.0,71723.0,0.0014]
[1773568293801,0.06970389,71732.0,71723.0,0.0014]
[1773568293964,0.12781237,71732.0,71723.0,0.0014]
[1773568294303,0.06970389,71732.0,71723.0,0.0014]
[1773568294659,0.06070389,71732.0,71723.0,0.0014]
[1773568296506,0.04430296,71734.0,71723.0,0.0016]
[1773568296707,0.04430296,71734.0,71723.0,0.07131258]
[1773568296942,0.04430296,71734.0,71724.0,0.06007936]
[1773568298077,0.10241144,71734.0,71723.0,0.07131258]
[1773568298277,0.05810848,71733.0,71723.0,0.07131258]
[1773568299450,0.06970389,71733.0,71723.0,0.07131258]
[1773568302448,0.05870389,71733.0,71723.0,0.07131258]
[1773568304668,0.04430296,71734.0,71723.0,0.07131258]
[1773568305329,0.00022001,71733.0,71723.0,0.07131258]
[1773568306813,0.06970389,71732.0,71723.0,0.07131258]
[1773568310193,0.05370389,71732.0,71723.0,0.07131258]
[1773568313718,0.0539239,71732.0,71723.0,0.07131258]
[1773568317868,0.0439239,71732.0,71723.0,0.07131258]
[1773568325710,0.0329239,71732.0,71723.0,0.07131258]
[1773568333444,0.0169239,71732.0,71723.0,0.07131258]
[1773568341092,0.0699239,71732.0,71723.0,0.07131258]
[1773568342445,0.06992392,71732.0,71723.0,0.07131258]
[1773568343203,0.00027001,71736.0,71724.0,0.05442994]
[1773568343775,0.00022001,71739.0,71727.0,0.05442994]
[1773568343940,0.0702539,71743.0,71727.0,0.05442994]
[1773568343941,0.00056001,71743.0,71727.0,0.05442994]
[1773568344143,0.00056001,71743.0,71723.0,0.07131258]
[1773568344144,0.00022001,71746.0,71731.0,0.05442994]
[1773568344390,0.13905669,71754.0,71730.0,0.05828677]
[1773568344391,0.06968741,71749.0,71733.0,0.05442994]
[1773568345233,0.06968741,71749.0,71735.0,0.05442994]
[1773568346923,0.06968643,71750.0,71735.0,0.05442994]
[1773568347151,0.0001286,71754.0,71739.0,0.05442994]
[1773568347338,0.0001286,71754.0,71741.0,0.05442994]
[1773568348715,0.00034861,71754.0,71741.0,0.05442994]
[1773568349534,0.00034861,71754.0,71743.0,0.05442994]
[1773568350929,0.0001286,71761.0,71743.0,0.05442994]
[1773568350932,0.09768661,71785.0,71744.0,0.05828677]
[1773568351120,0.09768661,71785.0,71770.0,0.05828677]
[1773568351121,0.0001675,71785.0,71770.0,0.05828677]
[1773568351327,0.0001675,71785.0,71772.0,0.03532704]
[1773568351522,0.0001675,71785.0,71773.0,0.06966407]
[1773568351724,1e-08,71785.0,71773.0,0.10499111]